bitfinex-derivatives/quotes_SOLF0:USTF0_20250803
["timestamp","ask_amount","ask_price","bid_price","bid_amount"]
[1754236199711,3.26,162.15,162.08,123.97015505]
[1754236200117,6.1687,162.12,162.08,123.97015505]
[1754236200315,3.26,162.11,162.09,2.8]
[1754236200512,3.26,162.11,162.1,2.8]
[1754236201014,3.26,162.11,162.08,121.17015505]
[1754236201314,3.26,162.11,162.08,123.97015505]
[1754236201514,3.26,162.16,162.08,123.97015505]
[1754236201916,3.26,162.16,162.08,114.96]
[1754236202117,3.26,162.11,162.08,117.76]
[1754236203225,6.1685,162.12,162.08,117.76]
[1754236203418,3.26,162.1,162.08,117.76]
[1754236203617,3.26,162.09,162.08,117.76]
[1754236203914,3.26,162.09,162.08,114.96]
[1754236204522,3.26,162.09,162.08,114.92]
[1754236204720,3.26,162.09,162.07,6.21015505]
[1754236204913,3.26,162.09,162.06,114.92]
[1754236205314,3.26,162.08,162.06,114.92]
[1754236205620,3.26,162.08,161.94,501.76556332]
[1754236205621,3.26,162.08,162.03,114.92]
[1754236205816,3.26,162.08,162.02,114.92]
[1754236206217,6.1709,162.06,162.02,121.0919]
[1754236206418,3.26,162.05,162.02,123.8919]
[1754236206615,3.26,162.04,162.02,123.8919]
[1754236207621,6.1709,162.06,162.02,123.8919]
[1754236207817,3.26,162.03,162.02,114.92]
[1754236211526,9.4318,162.03,162.02,114.92]
[1754236211919,3.26,162.03,161.94,501.76556332]
[1754236212223,3.26,162.01,161.95,114.88]
[1754236212420,3.26,162.01,161.95,117.69]
[1754236212619,6.1731,162.0,161.95,123.8647]
[1754236212824,3.26,161.99,161.96,2.81]
[1754236213016,3.26,161.98,161.94,421.03015505]
[1754236213223,3.26,161.98,161.97,114.88]
[1754236219435,3.28,162.08,161.98,2.81]
[1754236219627,3.28,162.04,161.98,2.81]
[1754236219826,3.28,162.02,161.99,2.81]
[1754236220123,3.28,162.0,161.99,2.81]
[1754236220335,6.1728,162.01,161.97,114.88]
[1754236220533,3.28,161.99,161.98,2.81]
[1754236225928,3.28,161.99,161.97,114.88]
[1754236226229,9.4536,161.99,161.97,114.88]
[1754236226430,3.28,161.98,161.97,114.88]
[1754236227631,3.28,161.98,161.95,114.86]
[1754236228332,3.28,161.98,161.95,117.67]
[1754236229128,6.21015505,162.03,161.96,2.81]
[1754236229322,3.28,161.99,161.96,2.81]
[1754236230127,3.28,161.98,161.97,2.81]
[1754236231933,6.1727,162.01,161.97,2.81]
[1754236232133,3.28,162.03,161.99,2.81]
[1754236232733,6.1725,162.02,161.99,2.81]
[1754236232926,3.28,162.01,161.99,2.81]
[1754236233126,3.28,162.01,161.98,117.67]
[1754236233328,3.28,162.0,161.98,114.86]
[1754236234531,3.28,162.0,161.97,2.81]
[1754236234735,3.28,162.0,161.98,114.84]
[1754236235729,3.28,162.0,161.95,2.81]
[1754236235931,3.28,162.0,161.94,114.84]
[1754236236433,9.49015505,162.0,161.94,114.84]
[1754236236630,3.28,161.99,161.94,114.84]
[1754236236826,6.21015505,161.98,161.94,114.84]
[1754236237026,6.21015505,161.98,161.91,2.81]
[1754236237027,3.28,161.94,161.91,114.84]
[1754236238838,3.28,161.94,161.91,117.65]
[1754236239132,3.28,161.94,161.91,114.84]
[1754236241636,3.28,161.94,161.91,117.65]
[1754236244042,3.28,161.94,161.91,114.84]
[1754236244442,9.4553,161.94,161.91,114.84]
[1754236244940,6.21015505,161.97,161.91,114.84]
[1754236245244,3.28,161.94,161.88,114.82]
[1754236245444,3.28,161.92,161.88,114.82]
[1754236246143,6.1765,161.91,161.88,114.82]
[1754236246344,3.28,161.9,161.88,114.82]
[1754236246542,3.28,161.92,161.88,114.82]
[1754236246743,3.28,161.92,161.88,117.63]
[1754236246946,6.176,161.92,161.88,117.63]
[1754236247137,3.28,161.91,161.88,117.63]
[1754236248841,3.28,161.9,161.86,2.81]
[1754236249240,9.4568,161.9,161.86,2.81]
[1754236249545,3.28,161.89,161.86,2.81]
[1754236251049,3.28,161.89,161.85,117.63]
[1754236251341,3.28,161.89,161.85,114.82]
[1754236251545,3.28,161.9,161.86,2.81]
[1754236252450,3.28,161.91,161.87,2.81]
[1754236252941,6.21015505,161.96,161.87,2.81]
[1754236253144,3.28,161.95,161.89,2.81]
[1754236254243,6.1754,161.94,161.89,2.81]
[1754236254445,3.28,161.93,161.89,2.81]
[1754236255347,3.28,161.93,161.9,2.81]
[1754236256546,3.28,161.93,161.84,6.21015505]
[1754236256745,3.28,161.91,161.84,2.81]
[1754236257250,3.28,161.88,161.84,2.81]
[1754236257750,3.28,161.88,161.85,2.81]
[1754236258252,3.28,161.87,161.85,2.81]
[1754236258455,3.28,161.87,161.84,2.81]
[1754236258952,3.28,161.87,161.84,8.989]
[1754236259153,3.28,161.87,161.85,2.81]
[1754236259954,3.28,161.87,161.84,6.179]
[1754236260356,3.28,161.87,161.86,2.81]
[1754236261456,3.28,161.91,161.84,2.81]
[1754236262050,3.28,161.88,161.84,2.81]
[1754236262451,3.28,161.91,161.84,2.81]
[1754236262753,3.28,161.91,161.83,114.8]
[1754236262754,6.21015505,161.9,161.83,114.8]
[1754236263054,6.1779,161.88,161.83,114.8]
[1754236263257,3.28,161.87,161.83,117.61]
[1754236263857,6.1779,161.87,161.83,117.61]
[1754236264156,3.28,161.86,161.83,114.8]
[1754236264757,9.4584,161.86,161.83,114.8]
[1754236264956,3.28,161.85,161.83,114.8]
[1754236265755,3.28,161.85,161.82,8.9897]
[1754236266153,3.28,161.84,161.83,8.9894]
[1754236266355,6.1776,161.88,161.83,6.1794]
[1754236266555,6.21015505,161.9,161.8,6.21015505]
[1754236266757,3.28,161.89,161.81,2.81]
[1754236267157,3.28,161.89,161.82,8.9896]
[1754236267554,6.1779,161.88,161.83,2.81]
[1754236267753,3.28,161.87,161.83,2.81]
[1754236268159,9.4579,161.87,161.83,8.9894]
[1754236268463,3.28,161.86,161.83,8.9894]
[1754236269665,3.28,161.87,161.84,2.81]
[1754236273361,9.458,161.87,161.84,2.81]
[1754236273669,3.28,161.86,161.84,2.81]
[1754236274365,3.19,161.85,161.84,2.81]
[1754236276268,3.19,161.85,161.83,2.82]
[1754236276466,3.19,161.85,161.8,123.83015505]
[1754236276769,3.19,161.85,161.81,9.0002]
[1754236277466,3.19,161.85,161.82,2.82]
[1754236278373,3.19,161.84,161.83,2.82]
[1754236281663,3.19,161.84,161.79,1.0753685]
[1754236281868,3.19,161.84,161.77,114.76]
[1754236282069,3.19,161.84,161.77,117.58]
[1754236282268,6.1803,161.81,161.77,117.58]
[1754236282466,3.19,161.8,161.77,117.58]
[1754236283273,3.19,161.8,161.77,114.76]
[1754236284275,9.3707,161.8,161.77,114.76]
[1754236284570,3.19,161.79,161.77,117.58]
[1754236284965,6.1807,161.8,161.77,117.58]
[1754236285170,3.19,161.78,161.77,117.58]
[1754236287866,3.19,161.78,161.77,114.76]
[1754236289177,3.19,161.78,161.77,117.58]
[1754236304291,3.47,161.8,161.77,123.7617]
[1754236304491,3.47,161.82,161.78,2.81]
[1754236304692,3.47,161.82,161.8,2.81]
[1754236304990,3.47,161.82,161.81,117.51]
[1754236307288,3.47,161.83,161.82,2.81]
[1754236307688,3.47,161.83,161.81,114.7]
[1754236307887,3.47,161.83,161.81,117.51]
[1754236308190,6.1794,161.84,161.81,117.51]
[1754236308390,3.47,161.82,161.81,117.51]
[1754236309184,6.21015505,161.88,161.81,123.6902]
[1754236309392,3.47,161.87,161.82,2.81]
[1754236309691,3.47,161.87,161.83,2.81]
[1754236309890,3.47,161.85,161.83,117.47]
[1754236310695,3.47,161.87,161.84,2.81]
[1754236310895,3.47,161.87,161.83,114.66]
[1754236311091,3.47,161.87,161.84,2.81]
[1754236311395,3.47,161.86,161.84,2.81]
[1754236313395,3.47,161.85,161.84,2.81]
[1754236315993,3.47,161.88,161.84,2.81]
[1754236316397,3.47,161.88,161.83,120.8394]
[1754236316598,3.47,161.88,161.85,2.81]
[1754236317199,141.32529792,161.9,161.87,2.81]
[1754236317794,3.47,161.89,161.87,2.81]
[1754236318096,3.47,161.93,161.87,2.81]
[1754236318703,3.47,161.91,161.88,2.81]
[1754236320602,3.47,161.91,161.87,8.9879]
[1754236321503,3.47,161.91,161.87,2.81]
[1754236322201,3.47,161.91,161.86,126.98835505]
[1754236322506,3.47,161.91,161.88,2.81]
[1754236323203,3.47,161.94,161.88,2.81]
[1754236323409,6.176,161.92,161.88,2.81]
[1754236323705,9.646,161.92,161.88,2.81]
[1754236323904,3.47,161.91,161.88,2.81]
[1754236324304,6.176,161.92,161.89,2.81]
[1754236324506,3.47,161.9,161.89,2.81]
[1754236325008,3.47,161.94,161.89,2.81]
[1754236325405,9.6455,161.94,161.9,2.81]
[1754236325608,3.47,161.93,161.9,2.81]
[1754236327212,6.1758,161.93,161.9,2.81]
[1754236327412,3.47,161.92,161.9,2.81]
[1754236328112,3.47,161.94,161.9,2.81]
[1754236328309,3.47,161.93,161.9,2.81]
[1754236329207,3.47,161.92,161.91,2.81]
[1754236332414,3.47,161.92,161.89,6.1771]
[1754236332614,3.47,161.92,161.9,2.81]
[1754236335217,3.46,161.91,161.9,8.9867]
[1754236335610,3.46,161.96,161.88,2.81]
[1754236335908,3.46,161.92,161.86,114.6]
[1754236336313,3.46,161.92,161.86,117.41]
[1754236337417,6.1764,161.91,161.86,123.588]
[1754236337718,3.46,161.9,161.86,123.588]
[1754236337910,3.46,161.9,161.86,120.778]
[1754236338110,3.46,161.9,161.87,2.81]
[1754236339007,3.46,161.9,161.86,117.41]
[1754236339211,3.46,161.9,161.86,114.6]
[1754236339410,3.46,161.9,161.83,2.81]
[1754236340006,6.1772,161.89,161.83,2.81]
[1754236340209,3.46,161.88,161.82,114.46]
[1754236340414,3.46,161.88,161.85,2.81]
[1754236341316,3.46,161.9,161.85,6.1784]
[1754236341516,3.46,161.9,161.86,2.81]
[1754236341819,6.1771,161.9,161.86,2.81]
[1754236342018,3.46,161.89,161.85,2.81]
[1754236342218,3.46,161.89,161.83,2.81]
[1754236342408,6.21015505,161.91,161.82,117.27]
[1754236342616,3.46,161.88,161.82,114.46]
[1754236343013,6.1782,161.87,161.82,123.4497]
[1754236343215,3.46,161.86,161.82,123.4497]
[1754236344414,3.46,161.86,161.83,2.81]
[1754236347123,3.46,161.85,161.82,114.46]
[1754236348429,3.46,161.84,161.82,114.46]
[1754236351123,3.46,161.84,161.83,2.81]
[1754236352327,3.46,161.84,161.83,8.9894]
[1754236353527,3.46,161.84,161.83,2.81]
[1754236354022,3.46,161.84,161.82,123.4497]
[1754236354217,6.1783,161.86,161.82,123.4497]
[1754236354419,3.46,161.83,161.82,123.4497]
[1754236355525,3.46,161.83,161.82,117.27]
[1754236357225,3.46,161.85,161.82,123.4498]
[1754236358421,3.46,161.85,161.83,2.81]
[1754236358624,6.1784,161.86,161.83,6.1794]
[1754236358824,3.46,161.85,161.82,114.46]
[1754236359131,3.46,161.85,161.83,2.81]
[1754236360726,3.46,161.85,161.82,114.46]
[1754236361334,9.6387,161.85,161.82,114.46]
[1754236361529,3.46,161.84,161.82,114.46]
[1754236367030,3.46,161.84,161.81,8.9901]
[1754236367234,3.46,161.84,161.81,123.3501]
[1754236368235,3.5,161.83,161.82,8.9798]
[1754236369032,3.5,161.89,161.83,6.1794]
[1754236369339,3.5,161.89,161.85,2.8]
[1754236369642,3.5,161.87,161.85,2.8]
[1754236370030,3.5,161.87,161.86,2.8]
[1754236370939,3.5,161.9,161.87,2.8]
[1754236371332,139.63030594,161.91,161.88,2.8]
[1754236371734,3.5,161.9,161.88,2.8]
[1754236372139,3.5,161.9,161.89,8.9771]
[1754236373334,3.5,161.9,161.89,2.8]
[1754236375138,6.9235228,161.98,161.88,6.21015505]
[1754236375438,3.5,161.97,161.91,2.8]
[1754236375742,3.5,161.97,161.93,2.8]
[1754236376543,3.5,161.97,161.92,114.32]
[1754236376844,6.1752,161.95,161.92,114.32]
[1754236377040,3.5,161.94,161.92,114.32]
[1754236377344,3.5,161.98,161.92,117.12]
[1754236378142,3.5,161.95,161.93,2.8]
[1754236379639,3.5,161.94,161.92,114.32]
[1754236379837,3.5,161.94,161.89,114.28]
[1754236380140,3.5,161.92,161.89,117.08]
[1754236380339,3.5,161.92,161.9,2.8]
[1754236380545,3.5,161.91,161.9,2.8]
[1754236384344,6.1749,161.95,161.92,2.8]
[1754236384546,9.6749,161.95,161.92,2.8]
[1754236384746,3.5,161.94,161.9,6.21015505]
[1754236384943,3.5,161.94,161.93,2.8]
[1754236385141,6.1745,161.96,161.91,2.8]
[1754236385338,3.5,161.95,161.91,2.8]
[1754236385544,3.5,161.95,161.9,6.21015505]
[1754236385741,3.5,161.95,161.92,2.8]
[1754236386343,3.5,161.94,161.92,8.9757]
[1754236386550,3.5,161.93,161.92,8.9757]
[1754236388550,3.5,161.93,161.91,8.9763]
[1754236390142,3.5,161.93,161.9,12.38685505]
[1754236390351,3.5,161.93,161.9,6.1767]
[1754236390749,3.5,161.93,161.9,8.9767]
[1754236391149,3.5,161.93,161.91,6.1763]
[1754236391449,3.5,161.97,161.91,8.9763]
[1754236391748,3.5,161.94,161.91,8.9763]
[1754236393246,3.5,161.94,161.92,8.9759]
[1754236393448,3.5,161.93,161.92,8.9759]
[1754236394552,3.5,161.93,161.91,2.81]
[1754236396348,3.5,161.93,161.91,8.9863]
[1754236398256,3.5,161.93,161.9,8.9866]
[1754236398754,3.5,161.93,161.91,2.81]
[1754236400054,3.41,161.92,161.89,12.38715505]
[1754236400258,3.41,161.92,161.88,2.81]
[1754236400957,6.1764,161.92,161.88,8.9874]
[1754236401160,3.41,161.91,161.88,8.9874]
[1754236401549,6.1764,161.92,161.89,8.987]
[1754236401749,3.41,161.95,161.89,8.987]
[1754236401750,3.41,161.93,161.9,2.81]
[1754236402359,3.41,161.93,161.92,8.986]
[1754236403061,3.41,161.93,161.92,2.81]
[1754236403264,3.41,161.93,161.9,2.81]
[1754236403560,3.41,161.93,161.91,2.81]
[1754236404160,3.41,161.93,161.91,8.9864]
[1754236405461,3.41,161.93,161.9,6.1767]
[1754236405657,3.41,161.93,161.9,8.9867]
[1754236407462,3.41,161.93,161.91,6.1764]
[1754236409059,3.41,161.92,161.9,6.1767]
[1754236409263,3.41,161.93,161.9,6.1767]
[1754236409953,3.41,161.94,161.87,116.97]
[1754236411356,6.1763,161.92,161.88,6.1775]
[1754236411659,3.41,161.94,161.87,116.97]
[1754236411963,6.176,161.92,161.87,123.1478]
[1754236412162,3.41,161.91,161.87,116.97]
[1754236412661,3.41,161.91,161.88,2.81]
[1754236413360,3.41,161.9,161.88,2.81]
[1754236413554,3.41,161.9,161.87,116.97]
[1754236414554,3.41,161.9,161.87,123.1476]
[1754236414962,3.41,161.9,161.87,116.97]
[1754236415258,3.41,161.9,161.88,8.9873]
[1754236415451,3.41,161.94,161.88,2.81]
[1754236415652,6.1759,161.93,161.88,2.81]
[1754236415850,3.41,161.92,161.88,2.81]
[1754236416257,3.41,161.91,161.89,2.81]
[1754236423667,3.41,161.91,161.87,114.16]
[1754236423969,3.41,161.91,161.88,2.82]
[1754236423970,3.42,161.9,161.88,2.82]
[1754236424683,3.42,161.9,161.87,114.16]
[1754236424684,6.21015505,161.93,161.87,114.16]
[1754236424966,3.42,161.89,161.84,2.82]
[1754236425165,9.5973,161.89,161.85,2.82]
[1754236425360,3.42,161.88,161.85,2.82]
[1754236425566,4.64992892,161.87,161.85,2.82]
[1754236425771,3.42,161.86,161.85,2.82]
[1754236426267,3.42,161.88,161.86,2.82]
[1754236428977,3.42,161.87,161.86,2.82]
[1754236439983,3.42,161.87,161.85,118.04906086]
[1754236440184,3.42,161.87,161.85,120.86906086]
[1754236443081,3.42,161.87,161.85,127.04776086]
[1754236443281,3.42,161.89,161.86,2.82]
[1754236443482,3.42,161.89,161.87,116.82]
[1754236443981,7.40906086,161.93,161.88,2.82]
[1754236444187,3.42,161.92,161.88,2.82]
[1754236444884,3.42,161.92,161.89,2.82]
[1754236445287,6.1763,161.92,161.89,2.82]
[1754236445483,3.42,161.91,161.89,2.82]
[1754236446083,3.42,161.91,161.87,124.16686086]
[1754236446388,3.42,161.91,161.88,2.82]
[1754236447787,3.42,161.91,161.88,8.9973]
[1754236447990,3.42,161.91,161.88,2.82]
[1754236450088,3.42,161.9,161.88,2.82]
[1754236452395,3.42,161.9,161.88,8.9975]
[1754236452686,3.42,161.91,161.9,2.82]
[1754236452897,3.42,161.91,161.9,116.78]
[1754236453694,6.175,161.95,161.9,116.78]
[1754236453891,3.35,161.94,161.92,2.79]
[1754236454184,3.35,161.93,161.91,3.98906086]
[1754236454693,3.35,161.93,161.92,2.79]
[1754236454890,3.35,161.93,161.92,8.966]
[1754236457194,6.1742,161.97,161.92,8.966]
[1754236457391,3.35,161.95,161.93,2.79]
[1754236457596,3.35,161.95,161.92,116.73]
[1754236459898,3.35,161.95,161.92,122.906]
[1754236460287,3.35,162.0,161.94,6.22758517]
[1754236460490,3.35,162.03,161.96,9.01758517]
[1754236460692,3.35,162.03,161.96,122.91758517]
[1754236460891,3.35,161.99,161.96,122.91758517]
[1754236461889,3.35,161.99,161.96,120.12758517]
[1754236462098,3.35,161.98,161.96,113.9]
[1754236462893,9.5237,161.98,161.96,113.9]
[1754236463091,3.35,161.97,161.96,113.9]
[1754236463893,3.35,161.97,161.96,116.69]
[1754236464192,3.35,161.97,161.96,122.8645]
[1754236464391,3.35,161.97,161.96,129.09208517]
[1754236465600,3.35,161.97,161.96,122.91758517]
[1754236465803,3.35,161.97,161.96,113.9]
[1754236470904,9.5241,161.97,161.96,113.9]
[1754236471601,6.1741,161.97,161.94,113.84]
[1754236471899,3.35,161.96,161.94,113.84]
[1754236474203,3.35,161.96,161.94,116.63]
[1754236474397,3.35,161.95,161.94,120.0152]
[1754236474606,3.35,161.96,161.94,120.0152]
[1754236474900,3.35,161.96,161.95,2.79]
[1754236475606,3.35,161.96,161.94,116.63]
[1754236476607,3.35,161.96,161.94,113.84]
[1754236477102,3.35,161.96,161.94,116.63]
[1754236477907,3.35,162.01,161.94,113.84]
[1754236478311,3.35,161.96,161.94,113.84]
[1754236479108,6.1734,161.99,161.94,126.24248517]
[1754236479405,3.35,161.98,161.94,129.03248517]
[1754236480210,9.5237,161.98,161.94,129.03248517]
[1754236480405,3.35,161.97,161.94,129.03248517]
[1754236480909,3.35,161.97,161.95,3.98448659]
[1754236483012,3.35,161.97,161.95,6.77448659]
[1754236485014,3.35,161.97,161.95,3.98448659]
[1754236486413,3.35,161.97,161.95,6.79448659]
[1754236488818,3.35,161.97,161.95,3.98448659]
[1754236489517,3.35,161.97,161.95,6.79448659]
[1754236490724,3.51,161.97,161.95,6.79448659]
[1754236491421,3.51,161.97,161.95,2.81]
[1754236491611,3.51,161.97,161.95,3.98448659]
[1754236492826,3.51,161.96,161.94,116.65]
[1754236493025,3.51,161.96,161.95,3.98448659]
[1754236495027,3.51,161.96,161.95,6.79448659]
[1754236497931,3.51,161.96,161.95,3.98448659]
[1754236500731,3.51,161.96,161.95,6.79448659]
[1754236502130,9.6845,161.96,161.95,3.98448659]
[1754236502335,3.51,161.95,161.9,5.12758099]
[1754236502541,3.51,161.95,161.92,3.98448659]
[1754236502728,3.51,161.93,161.87,5.12758099]
[1754236502932,3.51,161.91,161.88,113.68]
[1754236503333,3.51,161.91,161.88,116.49]
[1754236504132,3.51,161.89,161.88,116.49]
[1754236504329,8.15183284,161.89,161.88,116.49]
[1754236505037,3.51,161.89,161.88,116.49]
[1754236505638,3.51,161.89,161.88,113.68]
[1754236506938,3.51,161.89,161.88,116.49]
[1754236507633,3.51,161.89,161.88,113.68]
[1754236508443,3.51,161.89,161.88,116.49]
[1754236510736,3.51,161.89,161.88,113.68]
[1754236511043,3.51,161.89,161.87,113.68]
[1754236511237,3.51,161.89,161.87,116.49]
[1754236514547,3.98448659,161.95,161.89,2.81]
[1754236514740,3.98448659,161.95,161.88,3.98448659]
[1754236514741,3.33,161.94,161.91,3.98448659]
[1754236515048,3.33,161.94,161.92,116.47]
[1754236515446,3.33,161.95,161.92,116.47]
[1754236515943,3.33,161.95,161.92,113.66]
[1754236516144,3.33,161.93,161.92,113.66]
[1754236516546,3.33,161.93,161.92,116.47]
[1754236518746,9.5056,161.93,161.92,113.66]
[1754236521247,6.1756,161.93,161.91,3.98448659]
[1754236521447,3.33,161.92,161.88,3.98448659]
[1754236521655,3.33,161.92,161.89,113.64]
[1754236521856,6.1766,161.91,161.89,113.64]
[1754236522048,3.33,161.9,161.89,113.64]
[1754236522448,3.33,161.9,161.88,117.62448659]
[1754236523356,3.33,161.89,161.88,117.62448659]
[1754236523561,6.9235228,162.0,161.89,2.81]
[1754236523855,124.06740494,162.05,161.96,6.79448659]
[1754236523856,9.5041,161.97,161.96,6.79448659]
[1754236524256,3.33,161.97,161.96,6.79448659]
[1754236524754,3.33,161.97,161.96,2.81]
[1754236525148,9.5041,161.97,161.96,2.81]
[1754236525349,9.5041,161.97,161.95,113.64]
[1754236525549,3.33,161.96,161.95,116.45]
[1754236528060,9.5045,161.96,161.95,113.64]
[1754236532063,3.33,161.96,161.95,116.45]
[1754236537160,3.33,161.97,161.95,113.64]
[1754236537364,3.33,161.97,161.96,2.81]
[1754236537867,9.5041,161.97,161.96,2.81]
[1754236538473,3.33,161.97,161.96,2.81]
[1754236539668,3.33,161.98,161.96,2.81]
[1754236539872,3.33,161.98,161.97,116.35]
[1754236547286,9.5037,161.98,161.97,116.35]
[1754236548772,3.33,161.98,161.97,116.35]
[1754236555586,9.5037,161.98,161.97,113.54]
[1754236555793,9.3637,161.98,161.97,113.54]
[1754236557784,3.19,161.98,161.97,113.54]
[1754236557982,3.19,161.98,161.97,116.35]
[1754236561389,9.3637,161.98,161.97,113.54]
[1754236562293,130.99092774,162.05,161.97,113.54]
[1754236562492,3.19,162.01,161.98,2.81]
[1754236562992,6.1732,162.0,161.98,2.81]
[1754236563193,3.19,161.99,161.98,2.81]
[1754236564286,9.3633,161.99,161.98,2.81]
[1754236564483,3.19,161.98,161.97,116.34]
[1754236564694,3.19,161.98,161.96,6.78369199]
[1754236564990,3.19,161.98,161.97,113.42]
[1754236566297,9.3637,161.98,161.97,113.42]
[1754236567191,3.19,161.98,161.97,113.42]
[1754236567393,3.19,161.98,161.97,116.22]
[1754236569494,9.3635,161.99,161.98,2.8]
[1754236570996,9.3635,161.99,161.97,113.4]
[1754236570997,3.19,161.99,161.97,113.4]
[1754236572295,6.1737,161.98,161.97,113.4]
[1754236572596,9.3637,161.98,161.97,113.4]
[1754236572891,3.19,161.98,161.97,116.2]
[1754236574198,9.3637,161.98,161.97,116.2]
[1754236574991,3.19,161.98,161.97,116.2]
[1754236576197,9.3637,161.98,161.97,116.2]
[1754236578001,9.3637,161.98,161.97,113.4]
[1754236578698,6.1737,161.98,161.97,116.21]
[1754236579105,3.98369199,162.01,161.97,113.4]
[1754236579296,3.36,161.98,161.97,113.4]
[1754236579789,3.36,161.98,161.97,116.21]
[1754236580201,9.5337,161.98,161.97,116.21]
[1754236582001,9.5337,161.98,161.97,113.4]
[1754236582604,14.04501412,161.98,161.97,113.4]
[1754236582803,14.04501412,161.98,161.97,116.21]
[1754236583603,9.5337,161.98,161.97,116.21]
[1754236586905,9.5337,161.98,161.97,113.4]
[1754236590405,9.5337,161.98,161.97,116.21]
[1754236593106,9.5337,161.98,161.97,113.4]
[1754236593609,3.36,161.97,161.93,2.81]
[1754236593906,3.36,161.95,161.93,113.3]
[1754236594407,3.36,161.95,161.93,116.11]
[1754236596408,3.36,161.95,161.93,113.3]
[1754236596705,3.36,161.95,161.94,2.81]
[1754236598607,3.36,161.97,161.94,2.81]
[1754236598909,3.36,161.97,161.96,2.81]
[1754236599108,7.34369199,161.99,161.96,113.28]
[1754236599304,9.534,161.98,161.97,2.81]
[1754236599514,3.98369199,162.01,161.97,2.81]
[1754236599712,3.36,162.0,161.97,2.81]
[1754236600408,6.1737,161.99,161.97,2.81]
[1754236600609,3.36,162.0,161.97,2.81]
[1754236600808,3.36,162.0,161.96,116.09]
[1754236601004,6.1734,161.99,161.96,116.09]
[1754236601214,3.36,161.98,161.96,116.09]
[1754236602509,3.36,162.03,161.97,6.79369199]
[1754236602712,3.98369199,162.03,161.98,3.98369199]
[1754236603007,3.36,162.01,161.99,113.26]
[1754236603213,3.36,162.01,162.0,2.81]
[1754236603611,6.1726,162.01,162.0,2.81]
[1754236603811,9.3826,162.01,161.99,116.05]
[1754236604011,3.21,162.0,161.99,116.05]
[1754236604412,3.21,162.01,161.99,113.26]